bitfinex/quotes_ETHUSD_20260203
["timestamp","ask_amount","ask_price","bid_price","bid_amount"]
[1770137409396,4.45235975,2246.1,2244.9,12.98078923]
[1770137409397,1.11307662,2246.1,2244.9,12.98078923]
[1770137409596,1.11411758,2246.2,2245.0,0.00670271]
[1770137409793,0.0011,2246.2,2244.9,13.90808652]
[1770137409964,0.0011,2246.2,2245.4,11.86715555]
[1770137410294,0.0011,2246.6,2246.0,0.00670271]
[1770137410484,1.11355019,2247.3,2246.2,0.00670271]
[1770137410695,0.91353866,2247.2,2246.0,12.79445284]
[1770137411011,0.91345178,2247.1,2245.6,11.86045284]
[1770137411163,0.91345178,2247.0,2245.7,1.39818387]
[1770137411363,0.91345178,2246.9,2245.7,1.39818387]
[1770137411611,0.91345178,2246.8,2245.5,0.934]
[1770137411769,1.11279266,2246.6,2245.5,0.934]
[1770137411973,0.91345178,2246.5,2245.5,0.934]
[1770137412204,0.91345178,2246.5,2245.2,11.86045284]
[1770137412688,0.91345178,2246.5,2245.3,1.11343386]
[1770137412893,0.91345178,2246.5,2245.4,1.29738867]
[1770137413891,1.11289173,2246.4,2245.4,1.29738867]
[1770137415009,0.91514792,2246.3,2245.0,0.933]
[1770137415176,0.00670271,2246.2,2244.5,0.001]
[1770137415382,1.52738541,2246.1,2244.5,0.001]
[1770137415616,0.00670271,2245.5,2244.5,0.001]
[1770137415892,1.5206827,2245.5,2244.5,0.001]
[1770137416077,1.58374404,2245.4,2244.5,0.001]
[1770137416277,0.91514792,2245.3,2244.5,0.001]
[1770137416477,1.84814792,2245.2,2244.5,0.001]
[1770137416696,0.91514792,2245.1,2244.9,0.001]
[1770137416894,0.91415104,2245.0,2243.5,5.39029772]
[1770137417070,0.91415104,2244.9,2243.6,0.54573248]
[1770137417264,0.933,2245.2,2244.6,0.001]
[1770137417565,0.00670271,2245.1,2243.4,1.11435609]
[1770137417890,0.91406223,2245.1,2243.8,0.001]
[1770137418087,2.02764797,2245.0,2243.8,0.001]
[1770137418290,1.56226133,2244.9,2243.8,0.001]
[1770137418476,0.91406223,2244.8,2243.8,0.001]
[1770137418795,0.00670271,2244.7,2242.9,4.4585055]
[1770137419092,0.00670271,2244.5,2242.9,1.11457945]
[1770137419297,0.00670271,2244.5,2243.0,1.29750323]
[1770137419298,1.84706223,2244.4,2243.0,1.29750323]
[1770137419487,0.91406223,2244.3,2243.0,1.29750323]
[1770137419797,0.933,2244.4,2243.0,1.29750323]
[1770137419798,0.91406223,2244.2,2243.0,1.29750323]
[1770137420000,0.933,2244.4,2243.0,1.29750323]
[1770137420175,1.11398271,2244.2,2243.0,1.29750323]
[1770137420376,1.11397015,2244.3,2243.1,0.24121284]
[1770137422374,0.00670271,2244.0,2242.5,1.11482186]
[1770137422697,0.90989051,2243.9,2242.5,1.11482186]
[1770137422893,1.11397015,2244.3,2242.6,1.11476691]
[1770137423205,0.90985267,2244.2,2242.6,1.11477352]
[1770137423405,1.84385267,2244.1,2242.7,2.47396738]
[1770137423571,0.934,2244.1,2242.7,1.35927599]
[1770137424192,1.11408199,2244.0,2242.7,1.35927599]
[1770137424701,1.11408199,2244.0,2242.7,2.48070194]
[1770137424889,1.11408199,2244.0,2242.7,1.3659787]
[1770137425110,1.11388344,2244.4,2242.9,12.4846891]
[1770137425274,1.1138367,2244.5,2243.1,12.4846891]
[1770137425597,1.1138367,2244.5,2243.3,0.00670271]
[1770137426377,4.45533526,2244.6,2243.3,1.12112186]
[1770137426701,4.45533526,2244.6,2242.9,0.00670271]
[1770137426702,0.00670271,2244.2,2242.8,0.23066814]
[1770137427086,0.00670271,2244.3,2242.8,0.23066814]
[1770137427406,0.90768886,2244.2,2242.6,1.11476966]
[1770137427612,0.00670271,2244.3,2242.6,1.11476966]
[1770137427775,12.21020458,2244.5,2242.6,1.11474151]
[1770137427776,0.90779168,2244.2,2242.6,1.11474151]
[1770137427975,12.21020458,2244.5,2242.5,1.12149824]
[1770137428209,12.20350187,2244.2,2242.5,0.00670271]
[1770137428404,0.00670271,2243.8,2242.2,12.58742329]
[1770137428607,0.00670271,2243.2,2242.2,0.1094369]
[1770137429224,0.00670271,2243.2,2240.4,0.00670271]
[1770137429225,0.00670271,2242.9,2241.0,12.47798639]
[1770137429398,0.00670271,2242.9,2240.8,0.934]
[1770137429399,0.934,2242.8,2241.3,0.00670271]
[1770137429722,0.934,2242.8,2241.1,2.36397666]
[1770137429924,0.934,2242.8,2241.1,13.59350915]
[1770137430290,0.934,2242.8,2240.8,0.94070271]
[1770137430291,1.11477749,2242.6,2240.8,0.94070271]
[1770137430492,1.1214802,2242.6,2241.0,1.11556561]
[1770137430692,1.1214802,2242.6,2242.0,0.001]
[1770137430893,0.55872929,2242.5,2242.0,0.001]
[1770137431093,0.00670271,2242.2,2240.6,12.47798639]
[1770137431313,0.00670271,2241.9,2240.2,4.46387838]
[1770137431640,0.94070271,2241.8,2240.4,1.11584487]
[1770137431843,0.565432,2242.5,2240.3,12.47798639]
[1770137432127,0.00670271,2242.1,2240.4,2.36432421]
[1770137432347,1.11532455,2241.5,2240.2,1.11597178]
[1770137432497,2.04932455,2241.5,2240.2,1.11597178]
[1770137433253,0.00670271,2240.4,2238.4,12.4846891]
[1770137433399,0.934,2240.3,2238.7,16.94466496]
[1770137433718,0.934,2240.3,2238.8,1.11666964]
[1770137433920,0.934,2240.3,2238.8,1.12337235]
[1770137434310,0.934,2240.3,2238.8,1.11666964]
[1770137434497,1.9664141,2240.5,2239.0,12.47798639]
[1770137434825,1.86056479,2240.5,2239.0,12.47798639]
[1770137434997,1.86056479,2240.5,2238.8,1.11666964]
[1770137435320,1.86056479,2240.5,2239.3,0.00670271]
[1770137435321,0.74472337,2240.5,2239.3,0.00670271]
[1770137435519,0.74472337,2240.5,2239.4,12.4846891]
[1770137435719,1.1152748,2241.6,2239.7,12.4846891]
[1770137435908,1.77798759,2241.5,2239.9,0.00670271]
[1770137436514,1.11537431,2241.4,2239.9,1.12280808]
[1770137437097,1.11537431,2241.4,2240.0,0.00670271]
[1770137437292,1.11537431,2241.4,2239.8,1.24913918]
[1770137437497,0.00670271,2241.2,2239.5,1.11630037]
[1770137437735,0.00670271,2241.1,2239.5,1.11631967]
[1770137438040,0.00670271,2241.3,2239.5,1.11628444]
[1770137438337,0.30637528,2241.4,2239.9,13.59408285]
[1770137438493,1.11542408,2241.3,2240.0,1.80654629]
[1770137438805,1.11542408,2241.3,2239.9,1.11611886]
[1770137439007,1.42178066,2241.4,2240.0,0.00670271]
[1770137439223,1.42178066,2241.4,2239.9,1.11611802]
[1770137439411,1.42178066,2241.4,2239.9,13.60080712]
[1770137439613,1.42178066,2241.4,2240.0,1.80720016]
[1770137440233,2.35678066,2241.4,2240.0,1.80720016]
[1770137440430,2.36348337,2241.4,2239.6,4.46490955]
[1770137440640,2.35678066,2241.4,2239.7,12.4846891]
[1770137441001,2.35678066,2241.4,2239.8,0.00670271]
[1770137441222,1.42178066,2241.4,2240.0,12.4846891]
[1770137441524,1.42178066,2241.4,2240.2,0.00670271]
[1770137441525,0.30637528,2241.4,2240.2,0.00670271]
[1770137441693,1.42175568,2241.4,2240.2,1.24980945]
[1770137441898,1.42175568,2241.4,2239.9,0.935]
[1770137442498,1.42845839,2241.4,2239.9,0.935]
[1770137442703,1.42175568,2241.4,2239.9,2.05110686]
[1770137442997,1.42175568,2241.4,2239.4,12.47798639]
[1770137442998,0.00670271,2241.1,2239.4,12.47798639]
[1770137443205,0.00670271,2241.1,2240.1,0.001]
[1770137443403,0.00670271,2240.9,2239.5,1.24779864]
[1770137443602,0.00670271,2240.9,2239.2,1.11645097]
[1770137443603,0.94170271,2240.8,2239.2,1.11645097]
[1770137443822,0.935,2240.8,2239.9,0.001]
[1770137444607,1.11572276,2240.7,2239.9,0.001]
[1770137444806,2.21334374,2240.7,2239.9,0.001]
[1770137446807,0.0011,2241.2,2240.4,0.00670271]
[1770137447007,0.30637528,2241.4,2240.5,0.00670271]
[1770137447328,1e-08,2241.4,2240.6,0.00670271]
[1770137447924,1e-08,2241.4,2240.5,12.47798639]
[1770137448224,1.11502609,2242.1,2240.6,1.24846891]
[1770137448432,0.935,2242.3,2240.7,0.00670271]
[1770137448724,1.11497636,2242.2,2240.8,1.11567297]
[1770137449029,0.00670271,2242.1,2240.6,2.36422401]
[1770137449217,0.00670271,2242.1,2240.6,1.1157551]
[1770137449418,0.00670271,2242.1,2240.7,1.1157164]
[1770137449606,5.81567907,2242.2,2240.7,1.1157164]
[1770137450324,5.80897636,2242.2,2240.7,1.1157164]
[1770137450528,1.12167907,2242.2,2240.7,1.1157164]
[1770137450728,2.34207891,2242.1,2240.8,1.67353813]
[1770137451308,2.34207891,2242.1,2240.8,0.55787801]
[1770137451505,2.34207891,2242.1,2240.8,1.11567041]
[1770137451706,0.935,2242.1,2240.4,4.46333334]
[1770137451932,0.935,2242.1,2240.8,1.11565271]
[1770137452713,4.45990545,2242.3,2240.8,13.77116062]
[1770137452915,4.45990545,2242.3,2240.8,13.77786333]
[1770137454108,0.935,2242.2,2240.8,13.77786333]
[1770137454309,0.935,2242.2,2240.9,1.82472714]
[1770137454633,0.935,2242.2,2241.1,0.00670271]
[1770137454807,2.0499897,2242.2,2240.9,1.82472714]
[1770137455148,2.0499897,2242.2,2240.9,1.11561013]
[1770137455332,2.0499897,2242.2,2241.0,1.11557258]
[1770137455524,2.0499897,2242.2,2241.0,1.11553496]
[1770137455832,2.0499897,2242.2,2240.9,1.11558723]
[1770137456026,2.0499897,2242.2,2241.0,1.11556989]
[1770137456225,1.55823302,2242.1,2241.0,1.11556296]
[1770137456430,0.65098952,2242.1,2241.0,1.11556296]
[1770137456626,0.65098952,2242.1,2241.1,1.1155135]
[1770137457031,1.76604052,2242.1,2240.8,1.11567297]
[1770137457211,1.76604052,2242.1,2240.8,14.11184129]
[1770137457410,1.76604052,2242.1,2240.8,14.11284129]
[1770137457411,0.90852492,2242.0,2240.8,14.11284129]
[1770137457625,1.115051,2242.1,2240.8,14.11284129]
[1770137457836,0.90931731,2242.0,2240.8,14.11284129]
[1770137458026,0.0011,2242.0,2240.8,14.11284129]
[1770137458224,0.9094215,2241.9,2240.9,1.85824156]
[1770137458535,0.0011,2242.0,2240.9,1.85824156]
[1770137458730,0.90936542,2241.9,2240.9,1.85824156]
[1770137458916,0.0011,2242.0,2240.9,1.85824156]
[1770137459239,0.90932654,2241.9,2241.0,1.1155734]
[1770137459410,0.90932654,2241.8,2241.0,3.15891772]
[1770137459736,1.11617797,2242.0,2241.0,3.15891772]
[1770137459907,0.0011,2242.0,2241.0,16.16178875]
[1770137460112,3.27224488,2242.9,2241.8,13.00287103]
[1770137460113,1.82583274,2242.9,2241.8,13.00287103]
[1770137460327,0.91051469,2242.8,2241.8,13.00287103]
[1770137460556,0.91101933,2242.7,2241.9,1.30095737]
[1770137460747,0.91104702,2242.6,2241.3,12.99616832]
[1770137460947,1.84600802,2242.5,2241.0,3.15891772]
[1770137461243,0.91100802,2242.4,2241.2,13.00287103]
[1770137461408,2.04973771,2242.7,2241.2,13.00287103]
[1770137461608,0.91137807,2242.6,2241.3,14.29712569]
[1770137461815,0.30897856,2242.9,2241.7,12.99616832]
[1770137462040,0.91171426,2242.8,2241.3,1.30095737]
[1770137462218,19.37566494,2242.6,2240.8,12.99716832]
[1770137462418,19.37566494,2242.6,2240.8,1.1166395]
[1770137462419,12.4206315,2242.4,2240.8,1.1166395]
[1770137462624,1.85341697,2242.3,2240.8,1.1166395]
[1770137462931,0.00670271,2242.2,2240.8,0.001]
[1770137463134,1.11507582,2242.0,2240.8,0.001]
[1770137463335,17.1146315,2241.8,2240.8,0.001]
[1770137463532,0.00670271,2241.6,2240.0,4.46428558]
[1770137463843,1.84671426,2241.5,2240.1,1.11598959]
[1770137464045,0.00670271,2240.6,2238.9,1.11659254]
[1770137464252,0.00670271,2240.0,2239.0,1.41127609]
[1770137464481,0.00670271,2239.4,2237.8,4.46851471]
[1770137464634,0.00670271,2238.3,2236.4,42.03311355]
[1770137464816,0.00670271,2238.3,2237.3,0.00670271]
[1770137464817,0.935,2238.3,2237.3,0.00670271]
[1770137465145,0.94170301,2238.8,2237.2,1.11746826]
[1770137465445,0.90899889,2238.7,2237.2,1.11746826]
[1770137465616,2.26103344,2239.4,2237.4,13.00287133]
[1770137465817,0.33840949,2239.3,2237.8,13.00287133]
[1770137466020,4.41296142,2239.6,2238.2,12.99616832]
[1770137466260,5.52926109,2239.6,2237.9,0.00670301]
[1770137466447,6.2263613,2239.6,2237.9,0.00670301]
[1770137466646,1.54008378,2239.5,2237.7,13.93116832]
[1770137466955,3.47796142,2239.6,2238.1,13.00287133]
[1770137467155,3.47796142,2239.6,2238.3,1.11691909]
[1770137467737,3.47796142,2239.6,2238.3,15.05479042]
[1770137467934,6.72368381,2240.9,2238.9,0.00670301]
[1770137468237,0.00670301,2240.5,2238.9,0.935]
[1770137468831,0.00670301,2240.1,2238.2,17.47054769]
[1770137469073,0.54038613,2240.6,2238.7,1.11671952]
[1770137469257,0.54038613,2240.6,2238.7,14.11959085]
[1770137469560,0.54038613,2240.6,2239.3,13.00287133]
[1770137469776,0.936,2241.2,2239.4,0.94270301]
[1770137469952,12.41392879,2241.7,2239.6,13.00287133]
[1770137470132,0.00670301,2241.5,2239.6,13.00287133]
[1770137470333,0.91339297,2241.4,2239.6,13.00287133]
[1770137470665,0.91339297,2241.4,2239.5,1.39455743]
[1770137470666,0.00670301,2240.9,2239.5,1.39455743]
[1770137470834,0.00670301,2240.5,2239.0,12.99616832]
[1770137471035,0.936,2240.7,2239.0,12.99616832]
[1770137471366,1.12247557,2240.6,2239.1,1.11652003]
[1770137471579,0.94270301,2240.7,2239.2,1.85787685]
[1770137471580,0.936,2240.7,2239.2,1.85787685]
[1770137471875,13.52945241,2241.2,2239.2,1.85787685]
[1770137472046,0.90679549,2241.1,2239.4,12.99616832]
[1770137472362,0.0011,2241.3,2239.6,0.00670301]
[1770137472560,0.0011,2241.3,2239.8,0.00670301]
[1770137472765,0.0011,2241.3,2240.0,0.00670301]
[1770137472951,0.0011,2241.3,2239.8,1.39455743]
[1770137472952,0.00670301,2241.1,2239.8,1.39455743]
[1770137473151,0.00670301,2240.6,2239.4,1.11637045]
[1770137473339,0.00670301,2240.7,2239.4,1.11637045]
[1770137473545,0.00670301,2240.8,2239.4,1.11637045]
[1770137473769,0.00670301,2240.7,2239.4,1.11637045]
[1770137473935,0.00670301,2240.8,2239.4,1.11637045]
[1770137474136,0.00670301,2240.0,2239.0,1.11654392]
[1770137474331,0.00670301,2240.0,2238.4,1.85941698]
[1770137474569,0.00670301,2239.7,2238.7,1.11667726]
[1770137474774,3.75421338,2241.3,2239.3,1.11637629]
[1770137474941,4.46916503,2241.0,2239.3,1.11637629]
[1770137475136,0.00670301,2240.9,2239.2,4.46571869]
[1770137475473,2.05182835,2240.5,2239.2,4.46571869]
[1770137475680,2.05184967,2240.5,2239.3,0.65181888]
[1770137475965,4.46895675,2241.1,2239.3,0.65181888]
[1770137475966,4.46195622,2241.2,2239.3,1.58781888]
[1770137476170,0.90700064,2241.1,2239.4,0.00670301]
[1770137476462,0.9371,2241.3,2239.4,13.00287133]
[1770137476667,1.12323919,2241.3,2239.6,13.00287133]
[1770137476866,0.00670301,2241.0,2239.7,1.30095743]
[1770137477067,0.00670301,2240.9,2239.3,1.58781888]
[1770137477242,1.11565637,2240.9,2239.4,1.11637045]
[1770137477643,4.46879847,2241.1,2239.4,1.11637045]
[1770137477840,0.9070003,2241.0,2239.4,14.11253877]
[1770137478041,1.11550654,2241.2,2239.4,14.11253877]
[1770137478240,1.11550654,2241.2,2239.5,2.01725425]
[1770137478661,0.91380822,2241.1,2239.5,2.01725425]
[1770137478858,1.11653636,2241.3,2239.6,0.936]
[1770137479075,1.11653636,2241.3,2239.5,15.02012558]
[1770137479268,0.0011,2241.3,2239.8,1.11617108]
[1770137479467,0.0011,2241.3,2239.9,0.65168554]
[1770137479845,0.00670301,2241.4,2240.0,12.99616832]
[1770137480147,1.11457868,2243.1,2241.0,12.99616832]
[1770137480475,12.07859039,2242.8,2241.2,0.00670301]
[1770137480660,12.07859039,2242.8,2240.0,5.50591119]
[1770137480661,0.00670301,2241.9,2240.0,5.50591119]
[1770137480854,0.00670301,2241.8,2240.0,5.50591119]
[1770137481051,0.00670301,2242.5,2240.2,0.00670301]
[1770137481253,0.00670301,2242.2,2240.5,1.11582236]
[1770137481563,0.00670301,2242.1,2240.5,1.11582236]
[1770137481765,0.00670301,2242.2,2240.5,1.11582236]
[1770137482082,0.00670301,2242.1,2240.5,1.11582236]
[1770137482245,0.00670301,2242.2,2240.5,1.11582236]
[1770137482444,0.00670301,2242.2,2240.6,0.55791118]
[1770137482445,0.90964677,2242.1,2240.6,0.55791118]
[1770137482749,0.91635552,2242.0,2240.6,0.55791118]
[1770137482957,0.00670301,2242.1,2240.6,0.55791118]
[1770137483271,1.11512556,2241.9,2240.7,1.11572276]
[1770137483644,1.11512556,2241.9,2240.6,1.67364555]
[1770137483845,0.00670301,2241.7,2240.2,1.90319007]
[1770137484083,0.00670301,2241.5,2240.2,3.01915808]
[1770137484376,0.00670301,2241.5,2240.5,1.11580332]
[1770137484576,0.55755755,2241.8,2240.6,1.11575376]
[1770137484783,0.91710295,2241.7,2240.0,5.50591119]
[1770137484996,0.00670301,2241.1,2240.1,0.61575967]
[1770137485276,1.1155734,2241.0,2240.0,5.50591119]
[1770137486053,1.1155734,2241.0,2240.0,5.49679984]
[1770137486452,1.1155734,2241.0,2240.0,6.61285738]
[1770137486672,1.1155734,2241.0,2240.0,6.61286661]
[1770137486875,1.11555885,2241.1,2240.0,6.61286661]
[1770137487069,1.11555885,2241.1,2240.0,6.61286773]
[1770137487685,0.00670301,2240.9,2240.0,5.49679984]
[1770137488385,0.91115702,2240.8,2240.0,5.49679984]
[1770137488560,1.12226186,2241.1,2240.0,5.49679984]
[1770137488754,0.00670301,2240.8,2240.0,5.49679984]
[1770137488965,0.00670301,2240.6,2239.2,4.46576406]
[1770137489159,0.00670301,2240.7,2239.4,1.11633999]
[1770137489365,0.00670301,2240.8,2239.2,1.11643922]
[1770137489366,1.12252537,2240.5,2239.2,1.11643922]
[1770137489686,1.11582236,2240.5,2239.3,1.11640882]
[1770137489898,0.55791118,2240.4,2239.4,0.55821031]
[1770137490063,4.46328944,2240.6,2239.4,0.55821031]
[1770137490064,1.1158013,2240.6,2239.4,0.55821031]
[1770137490268,1.12232619,2240.9,2239.4,0.55821031]
[1770137490470,0.91196469,2240.8,2239.4,0.55821031]
[1770137490686,0.91196469,2240.7,2239.4,0.55821031]
[1770137490985,1.12229933,2241.0,2239.4,13.12809083]
[1770137491191,1.47105051,2240.9,2239.5,1.42444997]
[1770137491486,1.11567297,2240.8,2239.6,1.11627076]
[1770137491983,1.12237598,2240.8,2239.5,1.42444997]
[1770137492290,0.91944919,2240.7,2239.4,1.11633731]
[1770137492587,1.12237598,2240.8,2239.3,4.46555363]
[1770137492885,0.00670301,2240.1,2238.9,4.46643408]
[1770137493058,0.00670301,2240.5,2239.5,1.11630948]
[1770137493258,0.9137001,2240.4,2239.5,1.67447497]
[1770137493482,1.11567297,2240.8,2239.5,1.67447497]
[1770137493683,0.91392175,2240.7,2239.5,1.67447497]
[1770137493886,0.91392175,2240.6,2239.5,1.67447497]
[1770137494085,1.11560977,2241.0,2239.5,1.67447497]
[1770137494263,1.56597788,2240.9,2239.6,0.70757574]
[1770137494593,0.65205884,2240.9,2239.6,0.70757574]
[1770137495185,0.9152539,2240.8,2239.6,13.27745626]
[1770137495384,2.05155476,2241.1,2239.7,1.11622092]
[1770137495586,0.91566884,2241.0,2239.7,13.69280445]
[1770137495788,0.936,2241.1,2239.7,13.68610144]
[1770137495986,0.91573636,2241.0,2239.7,13.68610144]
[1770137496284,0.936,2241.1,2239.7,13.68610144]
[1770137496285,2.0515261,2241.1,2239.8,1.88585609]
[1770137496520,0.91661163,2241.0,2239.8,14.45573661]
[1770137496674,2.63497753,2241.6,2240.0,12.56988052]
[1770137497000,0.91663459,2241.5,2240.1,0.936]
[1770137497196,0.91663459,2241.4,2240.1,0.936]
[1770137497401,0.9233376,2241.3,2240.2,1.35058805]
[1770137497579,0.00670301,2241.1,2240.0,1.11606386]
[1770137497787,0.91663459,2241.0,2240.2,1.11596159]
[1770137497975,2.26773645,2241.6,2240.2,13.68584211]
[1770137497976,1.51967053,2241.6,2240.2,13.68584211]
[1770137498313,0.91689248,2241.5,2240.3,0.936]
[1770137498478,0.91689248,2241.4,2240.4,1.46218421]
[1770137498799,0.91689248,2241.3,2240.4,1.46218421]
[1770137499100,2.63489922,2241.7,2240.4,1.46218421]
[1770137499398,0.9173745,2241.6,2240.4,14.03206473]
[1770137499598,0.936,2242.0,2240.4,14.03206473]
[1770137499599,1.52077053,2242.1,2240.5,13.68570288]
[1770137499802,0.91779692,2242.0,2240.6,14.53099817]
[1770137500015,0.9178721,2241.9,2240.7,0.936]
[1770137500170,0.9178721,2241.8,2240.6,14.53099817]
[1770137500377,0.9178721,2241.7,2240.6,15.46699817]
[1770137500572,0.0011,2242.1,2240.6,15.46699817]
[1770137500818,0.9175976,2242.0,2240.7,14.23553588]
[1770137501118,0.0011,2242.3,2241.1,12.56988052]
[1770137501272,2.63410893,2243.3,2241.6,12.56988052]
[1770137501617,2.03199948,2243.2,2241.8,13.68505582]
[1770137501901,0.00670301,2242.8,2241.4,1.11534569]
[1770137502101,3.21783227,2243.1,2241.7,1.11522465]
[1770137502102,0.91751209,2242.7,2241.7,1.11522465]
[1770137502288,2.16865686,2243.1,2241.7,1.11522465]
[1770137502489,0.91689666,2243.0,2241.7,1.11522465]
[1770137502706,0.91689666,2242.9,2241.7,1.11520759]
[1770137502870,2.17535987,2243.1,2241.7,1.11520759]
[1770137502871,0.91689666,2242.8,2241.7,1.11520759]
[1770137503077,0.91689666,2242.7,2241.7,2.11890839]
[1770137503280,0.64898633,2243.1,2241.7,2.11890839]
[1770137503475,0.91606504,2243.0,2241.9,1.11512556]
[1770137503703,0.91606504,2242.9,2241.9,1.11512556]
[1770137504003,1.11456156,2243.1,2241.9,1.11512556]
[1770137504216,1.4798761,2243.0,2241.8,0.936]
[1770137504380,0.91591026,2242.9,2241.8,2.05117094]
[1770137504582,0.91591026,2242.9,2241.2,12.56988052]
[1770137504583,0.00670301,2242.7,2241.5,1.11528172]
[1770137504794,0.91591026,2242.6,2241.8,1.11516855]
[1770137504996,0.56396584,2243.0,2241.7,1.11520181]
[1770137505305,1.24260302,2242.9,2241.4,4.46132815]
[1770137505520,0.92211293,2242.8,2241.6,1.11526859]
[1770137505828,2.0301377,2242.7,2241.3,1.11542408]
[1770137505984,1.11472778,2242.7,2241.3,1.11542408]
[1770137506185,2.04971611,2242.8,2241.3,1.11542408]
[1770137506410,0.68288463,2242.7,2241.4,0.65190221]
[1770137507313,0.00670301,2242.4,2240.7,1.65895235]
[1770137507516,0.00670301,2241.9,2240.6,1.11572667]
[1770137507747,1.11507582,2242.0,2240.6,1.11577256]
[1770137508016,0.92091861,2241.9,2240.6,1.11577256]
[1770137508210,0.00670301,2241.7,2240.5,0.935]
[1770137508399,0.91428575,2241.6,2240.4,1.11584682]
[1770137508610,0.00670301,2241.7,2240.5,1.11581902]
[1770137508817,0.92091318,2241.6,2240.4,0.55795074]
[1770137508991,0.935,2241.9,2240.5,1.11581046]
[1770137509188,0.91429151,2241.8,2240.5,1.11581046]
[1770137509419,0.91429151,2241.7,2240.6,0.55790999]
[1770137509714,0.935,2241.9,2240.7,1.11572276]
[1770137510016,0.935,2241.9,2240.7,14.62060328]
[1770137511220,1.11506371,2242.1,2240.7,14.62060328]
[1770137511624,1.11491677,2242.4,2240.9,12.6458742]
[1770137511926,0.55742272,2242.3,2241.0,15.03340833]
[1770137512227,1.11473725,2242.7,2241.2,0.00670301]
[1770137512395,0.91424044,2242.6,2241.3,0.935]
[1770137512603,1.11473725,2242.7,2241.3,0.935]
[1770137512930,0.0011,2241.9,2241.3,0.935]
[1770137513111,0.0011,2242.1,2241.4,1.35808742]
[1770137513507,1.11470345,2242.8,2241.4,1.35808742]
[1770137513821,2.02876111,2242.7,2241.5,1.11532455]
[1770137514004,1.1147398,2242.7,2241.4,2.47342689]
[1770137514199,0.00670301,2242.5,2241.0,2.38079245]
[1770137514405,0.92146723,2242.4,2240.9,1.11558387]
[1770137514725,0.91476422,2242.3,2241.2,4.46176557]
[1770137514930,0.00670301,2242.5,2241.2,1.11544521]
[1770137515128,0.91472781,2242.4,2241.4,1.11536014]
[1770137515330,20.7938937,2242.9,2241.5,11.94549518]
[1770137515331,0.32049009,2242.9,2241.5,11.94549518]
[1770137515496,1.11463852,2242.9,2241.6,13.245548]
[1770137516029,4.45952431,2243.0,2241.7,1.11522505]
[1770137516336,0.91469048,2242.9,2241.7,1.11522505]
[1770137516630,4.46622732,2243.0,2241.7,1.11522505]
[1770137516812,0.91425597,2242.9,2241.7,1.11522505]
[1770137517013,0.53804833,2242.8,2241.7,2.99739751]
[1770137517830,0.53804833,2242.8,2241.6,1.30675583]
[1770137517831,1.11472778,2242.7,2241.6,1.30675583]
[1770137517998,1.11472778,2242.7,2241.6,1.11526891]
[1770137519736,1.65276439,2242.8,2241.6,1.11526891]
[1770137519908,1.1146666,2242.9,2241.6,1.11526891]
[1770137520109,0.91547737,2242.8,2241.6,13.05406108]
[1770137520312,1.1146666,2242.9,2241.6,1.11526891]
[1770137520510,0.0011,2243.0,2241.6,13.06076409]
[1770137520711,0.0011,2243.0,2241.7,13.6916661]
[1770137520912,0.0011,2243.0,2241.8,12.87379217]
[1770137521704,1.11568955,2243.0,2241.8,12.87379217]
[1770137522042,0.0011,2243.0,2241.9,1.11512556]
[1770137522335,0.0011,2243.0,2241.9,3.58145094]
[1770137522536,0.92283177,2242.9,2241.4,5.39649409]
[1770137522842,0.00670301,2242.5,2241.4,0.935]
[1770137523008,0.00670301,2242.5,2241.4,2.05037385]
[1770137523009,0.00670301,2242.4,2241.4,2.05037385]
[1770137523336,1.14515658,2242.7,2241.8,1.1151738]
[1770137523536,0.91732882,2242.6,2241.8,1.1151738]
[1770137523840,1.14515658,2242.9,2241.8,1.67277075]
[1770137524052,2.25978594,2242.9,2241.8,1.67277075]
[1770137524236,0.91794719,2242.8,2241.6,1.11525393]
[1770137524434,2.06310377,2242.8,2241.8,1.11517048]
[1770137524782,1.14625658,2243.0,2241.8,13.05396265]
[1770137525038,1.14515658,2243.7,2242.1,11.93879217]
[1770137525208,2.25928823,2243.9,2242.5,11.93879217]
[1770137525409,0.91851583,2243.8,2242.6,0.935]
[1770137525608,2.25921268,2244.1,2242.6,12.87379217]
[1770137525839,0.0011,2244.2,2243.0,11.93879217]
[1770137526133,0.0011,2244.4,2243.4,11.93879217]
[1770137526525,0.0011,2244.4,2243.4,11.94549518]
[1770137526727,1.14515658,2245.2,2243.6,11.94549518]
[1770137526970,0.91787257,2245.1,2243.9,0.00670301]
[1770137527123,1.11353341,2245.2,2243.9,0.00670301]
[1770137527328,1.11353341,2245.2,2243.9,1.28939012]
[1770137527530,0.92278989,2245.1,2243.9,1.28939012]
[1770137527714,0.91608688,2245.0,2243.7,0.935]
[1770137527917,0.0011,2245.3,2244.2,13.05277488]
[1770137528135,0.0011,2245.3,2244.3,0.935]
[1770137528345,0.0011,2245.3,2244.1,0.00670301]
[1770137528612,0.91409971,2245.2,2244.0,1.11404391]
[1770137528834,0.91409971,2245.1,2244.1,1.11402178]
[1770137529042,0.935,2245.2,2244.0,0.55705152]
[1770137529221,0.935,2245.2,2244.1,1.11402908]
[1770137529424,0.935,2245.2,2243.8,4.45667585]
[1770137529747,0.00670301,2245.0,2243.8,1.11415664]
[1770137530262,0.00670301,2244.4,2243.1,1.19454952]
[1770137530543,0.00670301,2244.4,2243.3,1.11441025]
[1770137530544,0.935,2244.4,2243.3,1.11441025]
[1770137530947,2.04863535,2244.9,2243.3,13.05320242]
[1770137532124,1.11383381,2244.5,2243.2,0.935]
[1770137532318,0.00670301,2244.4,2242.9,1.11462838]
[1770137532627,0.55892781,2244.4,2243.0,0.00670301]
[1770137532818,1.11381448,2244.6,2243.0,11.94549518]
[1770137533021,0.00670301,2244.5,2243.0,11.93879217]
[1770137533245,1.11381448,2244.6,2242.9,2.86583816]
[1770137533546,1.11381448,2244.6,2243.0,11.93879217]
[1770137533745,2.25874232,2245.1,2243.4,11.93879217]
[1770137533957,4.45446341,2245.0,2243.5,0.935]
[1770137534166,4.45407556,2245.2,2243.6,1.11428062]
[1770137534525,0.00670301,2244.9,2243.5,2.04931566]
[1770137534754,0.00670301,2245.1,2243.5,2.04931566]
[1770137534958,0.00670301,2245.0,2243.6,0.65068064]
[1770137535173,0.00670301,2244.9,2243.6,0.65068064]
[1770137535467,0.00670301,2245.0,2243.6,0.65068064]
[1770137536038,0.00670301,2244.6,2243.5,1.11432907]
[1770137536239,1.11388344,2244.4,2243.2,1.11447931]
[1770137536766,0.00670301,2244.3,2243.1,2.59564607]
[1770137536971,0.00670301,2244.3,2243.1,1.48113333]
[1770137537188,0.00670301,2244.3,2243.0,1.11454316]
[1770137537531,0.00670301,2244.3,2242.9,5.39249649]
[1770137537532,0.00670301,2244.2,2242.9,0.934]
[1770137537807,0.00670301,2244.0,2242.7,4.45889011]
[1770137537961,0.00670301,2244.1,2242.5,4.45928805]
[1770137538128,2.04788344,2244.4,2242.7,1.11472778]